[Event "Early-Titled-Tuesday-Blitz-January-30-2024"]
[Site "Chess.com"]
[Date "2024.01.30"]
[Round "7"]
[White "PepeCuenca"]
[Black "AustinThomas12345"]
[Result "1-0"]
[WhiteElo "2664"]
[BlackElo "2502"]
[TimeControl "180+1"]
[EndTime "9:15:17 PST"]
[Termination "PepeCuenca won by resignation"]

1. d4 {[%clk 0:03:00.9]} 1... Nf6 {[%clk 0:02:58]} 2. c4 {[%clk 0:03:01.1]} 2...
g6 {[%clk 0:02:51.1]} 3. Nc3 {[%clk 0:03:01.1]} 3... d5 {[%clk 0:02:51.2]} 4.
Nf3 {[%clk 0:02:58.9]} 4... Bg7 {[%clk 0:02:50.9]} 5. cxd5 {[%clk 0:02:59.4]}
5... Nxd5 {[%clk 0:02:51.8]} 6. e4 {[%clk 0:03:00.1]} 6... Nxc3 {[%clk
0:02:51.9]} 7. bxc3 {[%clk 0:03:01]} 7... c5 {[%clk 0:02:51.5]} 8. Be3 {[%clk
0:03:01.7]} 8... O-O {[%clk 0:02:50.9]} 9. Be2 {[%clk 0:02:59.5]} 9... Bg4
{[%clk 0:02:48.4]} 10. O-O {[%clk 0:02:56.9]} 10... cxd4 {[%clk 0:02:45.1]} 11.
cxd4 {[%clk 0:02:57.1]} 11... Nc6 {[%clk 0:02:44.8]} 12. d5 {[%clk 0:02:57.6]}
12... Bxf3 {[%clk 0:02:35.2]} 13. Bxf3 {[%clk 0:02:55.3]} 13... Ne5 {[%clk
0:02:31]} 14. Be2 {[%clk 0:02:55.3]} 14... Rc8 {[%clk 0:02:24.2]} 15. Qb3 {[%clk
0:02:47.3]} 15... b6 {[%clk 0:02:15.8]} 16. Rac1 {[%clk 0:02:46.3]} 16... Qd7
{[%clk 0:02:10.9]} 17. Bb5 {[%clk 0:02:31.7]} 17... Qg4 {[%clk 0:02:07.8]} 18.
f4 {[%clk 0:02:20.8]} 18... Rxc1 {[%clk 0:02:02.6]} 19. Bxc1 {[%clk 0:02:20.6]}
19... Nd7 {[%clk 0:01:49]} 20. h3 {[%clk 0:02:11.2]} 20... Bd4+ {[%clk
0:01:48.6]} 21. Kh1 {[%clk 0:02:04.4]} 1-0

[Event "Early-Titled-Tuesday-Blitz-January-30-2024"]
[Site "Chess.com"]
[Date "2024.01.30"]
[Round "7"]
[White "Jojo_898"]
[Black "GeorgiosSouleidis"]
[Result "0-1"]
[WhiteElo "2442"]
[BlackElo "2643"]
[TimeControl "180+1"]
[EndTime "9:15:29 PST"]
[Termination "GeorgiosSouleidis won by checkmate"]

1. e4 {[%clk 0:03:00.9]} 1... c5 {[%clk 0:02:58.9]} 2. Nf3 {[%clk 0:02:59.9]}
2... e6 {[%clk 0:02:59.4]} 3. c3 {[%clk 0:02:59.3]} 3... d5 {[%clk 0:02:58.6]}
4. exd5 {[%clk 0:02:58.8]} 4... exd5 {[%clk 0:02:59.5]} 5. d4 {[%clk 0:02:58.5]}
5... Nc6 {[%clk 0:02:59.9]} 6. Bd3 {[%clk 0:02:53.2]} 6... Bd6 {[%clk
0:02:59.6]} 7. O-O {[%clk 0:02:53]} 7... Nge7 {[%clk 0:02:57.3]} 8. dxc5 {[%clk
0:02:45]} 8... Bxc5 {[%clk 0:02:57.6]} 9. Qc2 {[%clk 0:02:38.6]} 9... h6 {[%clk
0:02:56.1]} 10. h3 {[%clk 0:02:34.6]} 10... O-O {[%clk 0:02:56]} 11. Nbd2 {[%clk
0:02:32.2]} 11... a6 {[%clk 0:02:56.1]} 12. Nb3 {[%clk 0:02:31.3]} 12... Ba7
{[%clk 0:02:56.4]} 13. Bf4 {[%clk 0:02:28.9]} 13... Be6 {[%clk 0:02:48.2]} 14.
Rad1 {[%clk 0:02:27.3]} 14... Rc8 {[%clk 0:02:48.4]} 15. Qe2 {[%clk 0:02:21.6]}
15... Bf5 {[%clk 0:02:36.8]} 16. Bxf5 {[%clk 0:02:08.1]} 16... Nxf5 {[%clk
0:02:37.7]} 17. Qd3 {[%clk 0:02:07.4]} 17... Nfe7 {[%clk 0:02:32.8]} 18. Nfd4
{[%clk 0:02:04.6]} 18... Qd7 {[%clk 0:02:31.4]} 19. Qg3 {[%clk 0:02:02.1]} 19...
Ng6 {[%clk 0:02:26.8]} 20. Be3 {[%clk 0:02:01.4]} 20... Bb8 {[%clk 0:02:23.8]}
21. Qf3 {[%clk 0:02:00.1]} 21... Nce5 {[%clk 0:02:23.3]} 22. Qh5 {[%clk
0:01:49.6]} 22... Qd6 {[%clk 0:02:19.2]} 23. Nf5 {[%clk 0:01:45.9]} 23... Nf3+
{[%clk 0:02:02.9]} 24. Qxf3 {[%clk 0:01:29.4]} 24... Qh2# {[%clk 0:02:03.8]} 0-1

[Event "Early-Titled-Tuesday-Blitz-January-30-2024"]
[Site "Chess.com"]
[Date "2024.01.30"]
[Round "7"]
[White "MoreChessJulia"]
[Black "Kostukov_Alex"]
[Result "0-1"]
[WhiteElo "2117"]
[BlackElo "2307"]
[TimeControl "180+1"]
[EndTime "9:15:46 PST"]
[Termination "Kostukov_Alex won by resignation"]

1. d4 {[%clk 0:02:59.4]} 1... g6 {[%clk 0:02:58.9]} 2. h4 {[%clk 0:02:57.9]}
2... h5 {[%clk 0:02:58.6]} 3. Bg5 {[%clk 0:02:56.2]} 3... Bg7 {[%clk 0:02:56.8]}
4. e3 {[%clk 0:02:55]} 4... c5 {[%clk 0:02:56.1]} 5. c3 {[%clk 0:02:54.2]} 5...
Nf6 {[%clk 0:02:55.4]} 6. Nd2 {[%clk 0:02:52.5]} 6... O-O {[%clk 0:02:55.3]} 7.
Ngf3 {[%clk 0:02:51.3]} 7... cxd4 {[%clk 0:02:53.5]} 8. exd4 {[%clk 0:02:50.6]}
8... d5 {[%clk 0:02:54.4]} 9. Bd3 {[%clk 0:02:50.1]} 9... Nc6 {[%clk 0:02:54]}
10. O-O {[%clk 0:02:49.7]} 10... Bg4 {[%clk 0:02:51.3]} 11. Re1 {[%clk
0:02:48.3]} 11... Rb8 {[%clk 0:02:48.3]} 12. Qc2 {[%clk 0:02:47]} 12... b5
{[%clk 0:02:44.6]} 13. a3 {[%clk 0:02:46.2]} 13... Na5 {[%clk 0:02:41.6]} 14.
Nh2 {[%clk 0:02:45.3]} 14... Be6 {[%clk 0:02:31.2]} 15. f4 {[%clk 0:02:43.5]}
15... Qd7 {[%clk 0:02:26.7]} 16. Rf1 {[%clk 0:02:41.5]} 16... Bf5 {[%clk
0:02:18.5]} 17. Bxf5 {[%clk 0:02:40.9]} 17... Qxf5 {[%clk 0:02:19.4]} 18. Qxf5
{[%clk 0:02:40.4]} 18... gxf5 {[%clk 0:02:19.4]} 19. Rfe1 {[%clk 0:02:39.6]}
19... e6 {[%clk 0:02:12.5]} 20. g3 {[%clk 0:02:37.9]} 20... Nc4 {[%clk
0:02:11.3]} 21. Rab1 {[%clk 0:02:33.8]} 21... Rfe8 {[%clk 0:02:10.5]} 22. Nxc4
{[%clk 0:02:33.1]} 22... bxc4 {[%clk 0:02:05.4]} 23. Re2 {[%clk 0:02:33.2]}
23... Ne4 {[%clk 0:02:00.6]} 24. Rxe4 {[%clk 0:02:29.6]} 24... fxe4 {[%clk
0:01:56.6]} 25. f5 {[%clk 0:02:29.8]} 25... exf5 {[%clk 0:01:51.4]} 26. Nf1
{[%clk 0:02:30.3]} 26... Rb7 {[%clk 0:01:44.7]} 27. Ne3 {[%clk 0:02:30.1]} 27...
Reb8 {[%clk 0:01:41.8]} 28. Nxd5 {[%clk 0:02:28.2]} 28... Rxb2 {[%clk
0:01:41.8]} 29. Rxb2 {[%clk 0:02:27.1]} 29... Rxb2 {[%clk 0:01:42.7]} 30. Ne3
{[%clk 0:02:26.2]} 30... Rb1+ {[%clk 0:01:30.9]} 31. Kf2 {[%clk 0:02:24.2]}
31... Rc1 {[%clk 0:01:31.8]} 32. Nxc4 {[%clk 0:02:22.9]} 32... Rxc3 {[%clk
0:01:31.7]} 33. Nd6 {[%clk 0:02:23.4]} 33... Bxd4+ {[%clk 0:01:29.4]} 34. Kg2
{[%clk 0:02:21.7]} 34... Rc2+ {[%clk 0:01:25.5]} 35. Kh3 {[%clk 0:02:20.5]}
35... Rf2 {[%clk 0:01:20.5]} 0-1

[Event "Early-Titled-Tuesday-Blitz-January-30-2024"]
[Site "Chess.com"]
[Date "2024.01.30"]
[Round "7"]
[White "Balla_Tamas"]
[Black "LuisFSiles"]
[Result "1-0"]
[WhiteElo "2420"]
[BlackElo "2236"]
[TimeControl "180+1"]
[EndTime "9:15:51 PST"]
[Termination "Balla_Tamas won by resignation"]

1. e4 {[%clk 0:03:00.9]} 1... c5 {[%clk 0:02:59.1]} 2. c3 {[%clk 0:03:01.1]}
2... d5 {[%clk 0:02:57.2]} 3. exd5 {[%clk 0:03:01.1]} 3... Nf6 {[%clk
0:02:57.6]} 4. d4 {[%clk 0:03:00]} 4... cxd4 {[%clk 0:02:57.1]} 5. cxd4 {[%clk
0:02:59.6]} 5... Nxd5 {[%clk 0:02:55.9]} 6. Nf3 {[%clk 0:02:58.2]} 6... g6
{[%clk 0:02:55.1]} 7. Nc3 {[%clk 0:02:57]} 7... Bg7 {[%clk 0:02:54.2]} 8. Bc4
{[%clk 0:02:57.6]} 8... Nxc3 {[%clk 0:02:54.4]} 9. bxc3 {[%clk 0:02:57.7]} 9...
O-O {[%clk 0:02:53.7]} 10. O-O {[%clk 0:02:57.3]} 10... Nc6 {[%clk 0:02:53.9]}
11. Bb3 {[%clk 0:02:56.6]} 11... Na5 {[%clk 0:02:51.9]} 12. Re1 {[%clk
0:02:55.4]} 12... Bd7 {[%clk 0:02:17.7]} 13. Ba3 {[%clk 0:02:51.9]} 13... Re8
{[%clk 0:02:16.1]} 14. Ng5 {[%clk 0:02:31.1]} 14... e6 {[%clk 0:02:06]} 15. Ne4
{[%clk 0:02:24.6]} 15... Bc6 {[%clk 0:02:01.8]} 16. Nd6 {[%clk 0:02:14.4]} 16...
Qg5 {[%clk 0:01:48]} 17. f3 {[%clk 0:02:02.7]} 17... Red8 {[%clk 0:01:44.6]} 18.
Nxf7 {[%clk 0:01:57.5]} 18... Kxf7 {[%clk 0:01:27.7]} 19. Bxe6+ {[%clk
0:01:57.3]} 19... Kf6 {[%clk 0:01:27.7]} 20. d5 {[%clk 0:01:45.5]} 20... Re8
{[%clk 0:01:17.6]} 21. Qd4+ {[%clk 0:01:41.9]} 1-0

[Event "Early-Titled-Tuesday-Blitz-January-30-2024"]
[Site "Chess.com"]
[Date "2024.01.30"]
[Round "7"]
[White "GAusal"]
[Black "whiteglovethief"]
[Result "1-0"]
[WhiteElo "2296"]
[BlackElo "2483"]
[TimeControl "180+1"]
[EndTime "9:15:53 PST"]
[Termination "GAusal won by resignation"]

1. e4 {[%clk 0:03:00.9]} 1... c5 {[%clk 0:02:58.1]} 2. Nf3 {[%clk 0:02:59.3]}
2... d6 {[%clk 0:02:58.4]} 3. Nc3 {[%clk 0:02:54.9]} 3... Nc6 {[%clk 0:02:55.6]}
4. Bb5 {[%clk 0:02:54.7]} 4... Bd7 {[%clk 0:02:54.7]} 5. d4 {[%clk 0:02:48.5]}
5... Nxd4 {[%clk 0:02:52.1]} 6. Bxd7+ {[%clk 0:02:45.1]} 6... Qxd7 {[%clk
0:02:53]} 7. Nxd4 {[%clk 0:02:42.4]} 7... cxd4 {[%clk 0:02:53.9]} 8. Qxd4 {[%clk
0:02:41.8]} 8... Nf6 {[%clk 0:02:51.7]} 9. Bg5 {[%clk 0:02:37.3]} 9... e6 {[%clk
0:02:47.3]} 10. Bxf6 {[%clk 0:02:33.6]} 10... gxf6 {[%clk 0:02:48.2]} 11. Qxf6
{[%clk 0:02:31.2]} 11... Rg8 {[%clk 0:02:48.8]} 12. O-O {[%clk 0:02:25.5]} 12...
Bg7 {[%clk 0:02:48.6]} 13. Qh4 {[%clk 0:02:21.9]} 13... Qe7 {[%clk 0:02:41]} 14.
Qxh7 {[%clk 0:02:15.1]} 14... O-O-O {[%clk 0:02:32.8]} 15. Rfd1 {[%clk
0:02:06.7]} 15... Be5 {[%clk 0:02:28.2]} 16. Qh3 {[%clk 0:02:00.2]} 16... Rh8
{[%clk 0:02:27.4]} 17. Qe3 {[%clk 0:01:55.5]} 17... Bxh2+ {[%clk 0:02:19.1]} 18.
Kf1 {[%clk 0:01:55]} 18... Kb8 {[%clk 0:02:17.6]} 19. Nb5 {[%clk 0:01:50.8]}
19... b6 {[%clk 0:02:14.1]} 20. g3 {[%clk 0:01:46.1]} 20... Qf6 {[%clk
0:02:09.7]} 21. Rxd6 {[%clk 0:01:40.6]} 21... Rxd6 {[%clk 0:02:01.7]} 22. Nxd6
{[%clk 0:01:39.2]} 22... Qxb2 {[%clk 0:02:02.3]} 23. Rd1 {[%clk 0:01:34.5]}
23... Bxg3 {[%clk 0:02:00.3]} 24. Qxg3 {[%clk 0:01:30.4]} 24... Rh1+ {[%clk
0:02:00.1]} 25. Ke2 {[%clk 0:01:24.1]} 25... Qxc2+ {[%clk 0:01:58]} 26. Rd2
{[%clk 0:01:23.3]} 26... Qc7 {[%clk 0:01:54.8]} 27. Qg8+ {[%clk 0:01:16.7]} 1-0

[Event "Early-Titled-Tuesday-Blitz-January-30-2024"]
[Site "Chess.com"]
[Date "2024.01.30"]
[Round "7"]
[White "Predator0608"]
[Black "Aanna12"]
[Result "1-0"]
[WhiteElo "2478"]
[BlackElo "2304"]
[TimeControl "180+1"]
[EndTime "9:16:01 PST"]
[Termination "Predator0608 won by resignation"]

1. f4 {[%clk 0:03:00.9]} 1... d6 {[%clk 0:02:57.6]} 2. Nf3 {[%clk 0:03:01]} 2...
Nd7 {[%clk 0:02:56.7]} 3. e4 {[%clk 0:02:59.5]} 3... g6 {[%clk 0:02:48.4]} 4. d4
{[%clk 0:02:58.7]} 4... Bg7 {[%clk 0:02:48.4]} 5. Bd3 {[%clk 0:02:56.4]} 5... c5
{[%clk 0:02:47.3]} 6. c3 {[%clk 0:02:56.4]} 6... e5 {[%clk 0:02:41.8]} 7. Be3
{[%clk 0:02:49.7]} 7... cxd4 {[%clk 0:02:35.2]} 8. cxd4 {[%clk 0:02:49.1]} 8...
exd4 {[%clk 0:02:33.6]} 9. Bxd4 {[%clk 0:02:45.7]} 9... Bxd4 {[%clk 0:02:32.7]}
10. Nxd4 {[%clk 0:02:46.5]} 10... Nc5 {[%clk 0:02:32.7]} 11. Nc3 {[%clk
0:02:41.8]} 11... Qh4+ {[%clk 0:02:28.8]} 12. g3 {[%clk 0:02:39.2]} 12... Qg4
{[%clk 0:02:27]} 13. Nd5 {[%clk 0:02:14.4]} 13... Qxd1+ {[%clk 0:02:00]} 14.
Rxd1 {[%clk 0:02:11.2]} 14... Bg4 {[%clk 0:01:59.7]} 15. Be2 {[%clk 0:02:00.3]}
15... Bxe2 {[%clk 0:01:58.2]} 16. Kxe2 {[%clk 0:02:01]} 16... O-O-O {[%clk
0:01:48.4]} 17. Kf3 {[%clk 0:01:57.2]} 17... Re8 {[%clk 0:01:44.3]} 18. Nb5
{[%clk 0:01:26.9]} 18... Nxe4 {[%clk 0:01:41.3]} 19. Nbc7 {[%clk 0:01:25.1]} 1-0

[Event "Early-Titled-Tuesday-Blitz-January-30-2024"]
[Site "Chess.com"]
[Date "2024.01.30"]
[Round "7"]
[White "Kildepiotr"]
[Black "aistrel"]
[Result "1-0"]
[WhiteElo "2675"]
[BlackElo "2510"]
[TimeControl "180+1"]
[EndTime "9:16:08 PST"]
[Termination "Kildepiotr won by resignation"]

1. Nf3 {[%clk 0:02:59.7]} 1... d5 {[%clk 0:02:56.7]} 2. g3 {[%clk 0:02:59.9]}
2... Nc6 {[%clk 0:02:54.3]} 3. Bg2 {[%clk 0:03:00.1]} 3... e5 {[%clk 0:02:54.3]}
4. d3 {[%clk 0:03:00.7]} 4... Bf5 {[%clk 0:02:53.1]} 5. O-O {[%clk 0:03:00.8]}
5... Qd7 {[%clk 0:02:53.7]} 6. c4 {[%clk 0:02:59.2]} 6... d4 {[%clk 0:02:51.9]}
7. Qb3 {[%clk 0:02:40.9]} 7... Na5 {[%clk 0:02:46]} 8. Qb5 {[%clk 0:02:28.5]}
8... Qxb5 {[%clk 0:01:37.1]} 9. cxb5 {[%clk 0:02:29.4]} 9... O-O-O {[%clk
0:01:37.4]} 10. Bd2 {[%clk 0:02:20.2]} 10... b6 {[%clk 0:01:36.3]} 11. Nxe5
{[%clk 0:02:19.8]} 11... Be6 {[%clk 0:01:29.3]} 12. b4 {[%clk 0:02:13.8]} 12...
Nb7 {[%clk 0:01:26.4]} 13. Nc6 {[%clk 0:02:13.6]} 13... Nd6 {[%clk 0:01:26.7]}
14. a4 {[%clk 0:02:08.1]} 14... Re8 {[%clk 0:01:17.3]} 15. Nxa7+ {[%clk
0:02:05]} 15... Kd8 {[%clk 0:01:17.9]} 16. a5 {[%clk 0:01:57]} 16... Nf6 {[%clk
0:01:14]} 17. a6 {[%clk 0:01:53.4]} 17... Bd5 {[%clk 0:01:13.2]} 18. Nc6+ {[%clk
0:01:48.5]} 18... Kc8 {[%clk 0:01:08.7]} 19. Bh3+ {[%clk 0:01:36.8]} 19... Be6
{[%clk 0:01:08.4]} 20. Bxe6+ {[%clk 0:01:35.4]} 20... Rxe6 {[%clk 0:01:05.3]}
21. a7 {[%clk 0:01:35]} 1-0

[Event "Early-Titled-Tuesday-Blitz-January-30-2024"]
[Site "Chess.com"]
[Date "2024.01.30"]
[Round "7"]
[White "Shield12"]
[Black "Legendinunknown"]
[Result "0-1"]
[WhiteElo "2988"]
[BlackElo "2848"]
[TimeControl "180+1"]
[EndTime "9:16:47 PST"]
[Termination "Legendinunknown won by resignation"]

1. e4 {[%clk 0:03:00.9]} 1... e5 {[%clk 0:02:59.5]} 2. Nf3 {[%clk 0:03:01.4]}
2... Nc6 {[%clk 0:02:59.4]} 3. Bb5 {[%clk 0:03:01.3]} 3... a6 {[%clk 0:02:59.3]}
4. Ba4 {[%clk 0:03:01.7]} 4... d6 {[%clk 0:02:59.8]} 5. O-O {[%clk 0:03:01.2]}
5... Bg4 {[%clk 0:02:59.5]} 6. h3 {[%clk 0:02:59.5]} 6... h5 {[%clk 0:02:59.3]}
7. Bxc6+ {[%clk 0:02:56.1]} 7... bxc6 {[%clk 0:02:59.2]} 8. d4 {[%clk 0:02:57]}
8... Bxf3 {[%clk 0:02:59.2]} 9. Qxf3 {[%clk 0:02:57.9]} 9... exd4 {[%clk
0:02:59.9]} 10. Rd1 {[%clk 0:02:55.4]} 10... Qf6 {[%clk 0:02:53.6]} 11. Qxf6
{[%clk 0:02:52.4]} 11... Nxf6 {[%clk 0:02:53.6]} 12. Rxd4 {[%clk 0:02:53.3]}
12... c5 {[%clk 0:02:53.8]} 13. Ra4 {[%clk 0:02:52.1]} 13... g6 {[%clk
0:02:52.6]} 14. b3 {[%clk 0:02:48]} 14... Bg7 {[%clk 0:02:52.1]} 15. Bb2 {[%clk
0:02:48.6]} 15... O-O {[%clk 0:02:52.3]} 16. Nd2 {[%clk 0:02:47.5]} 16... Rfe8
{[%clk 0:02:52]} 17. Re1 {[%clk 0:02:47.2]} 17... Nxe4 {[%clk 0:02:46.4]} 18.
Rexe4 {[%clk 0:01:24.8]} 18... Rxe4 {[%clk 0:02:35.6]} 19. Rxe4 {[%clk
0:01:25.7]} 19... Bxb2 {[%clk 0:02:35.3]} 20. Re7 {[%clk 0:01:26.6]} 20... Rc8
{[%clk 0:02:33.2]} 21. Nc4 {[%clk 0:01:25.3]} 21... Bf6 {[%clk 0:02:29.7]} 22.
Re3 {[%clk 0:01:22.4]} 22... d5 {[%clk 0:02:24.5]} 23. Na5 {[%clk 0:01:22.4]}
23... c6 {[%clk 0:02:19.2]} 24. Nb7 {[%clk 0:01:17]} 24... Bd4 {[%clk 0:02:16]}
25. Re7 {[%clk 0:01:12.4]} 25... Kf8 {[%clk 0:02:00.8]} 26. Rxf7+ {[%clk
0:01:04.3]} 26... Kxf7 {[%clk 0:02:00.7]} 27. Nd6+ {[%clk 0:01:05.2]} 27... Ke6
{[%clk 0:02:00]} 28. Nxc8 {[%clk 0:01:06.1]} 28... c4 {[%clk 0:02:00.6]} 29.
bxc4 {[%clk 0:00:53.7]} 29... dxc4 {[%clk 0:01:54.9]} 30. c3 {[%clk 0:00:51.7]}
30... Bc5 {[%clk 0:01:54.9]} 0-1

[Event "Early-Titled-Tuesday-Blitz-January-30-2024"]
[Site "Chess.com"]
[Date "2024.01.30"]
[Round "7"]
[White "Hikaru"]
[Black "eagleclaw07"]
[Result "1-0"]
[WhiteElo "3275"]
[BlackElo "2749"]
[TimeControl "180+1"]
[EndTime "9:16:54 PST"]
[Termination "Hikaru won by resignation"]

1. Nf3 {[%clk 0:03:00.9]} 1... Nf6 {[%clk 0:03:00.4]} 2. b3 {[%clk 0:02:55]}
2... b6 {[%clk 0:03:00.4]} 3. g3 {[%clk 0:02:54.8]} 3... Bb7 {[%clk 0:03:00.7]}
4. Bb2 {[%clk 0:02:55.7]} 4... e6 {[%clk 0:03:01.5]} 5. Bg2 {[%clk 0:02:55.9]}
5... Be7 {[%clk 0:03:02.2]} 6. O-O {[%clk 0:02:56.5]} 6... O-O {[%clk
0:03:02.9]} 7. c4 {[%clk 0:02:57.1]} 7... d5 {[%clk 0:03:03.2]} 8. d3 {[%clk
0:02:56.4]} 8... c5 {[%clk 0:03:01.8]} 9. e3 {[%clk 0:02:57]} 9... Nbd7 {[%clk
0:02:55.3]} 10. Qe2 {[%clk 0:02:56.9]} 10... Qc7 {[%clk 0:02:52.8]} 11. Nc3
{[%clk 0:02:56.8]} 11... Rad8 {[%clk 0:02:48.1]} 12. Rfd1 {[%clk 0:02:54.8]}
12... Rfe8 {[%clk 0:02:47.1]} 13. d4 {[%clk 0:02:52.7]} 13... dxc4 {[%clk
0:02:33]} 14. bxc4 {[%clk 0:02:51.2]} 14... cxd4 {[%clk 0:02:23.2]} 15. exd4
{[%clk 0:02:51.7]} 15... Rc8 {[%clk 0:02:22.5]} 16. Nd2 {[%clk 0:02:49.4]} 16...
Bxg2 {[%clk 0:02:22.3]} 17. Kxg2 {[%clk 0:02:50.3]} 17... a6 {[%clk 0:02:17.8]}
18. Rac1 {[%clk 0:02:49.8]} 18... Bb4 {[%clk 0:02:10.9]} 19. Nce4 {[%clk
0:02:48.4]} 19... Bxd2 {[%clk 0:01:39.1]} 20. Nxd2 {[%clk 0:02:47.4]} 20... b5
{[%clk 0:01:35.6]} 21. c5 {[%clk 0:02:47.7]} 21... e5 {[%clk 0:01:28.8]} 22. c6
{[%clk 0:02:39.3]} 22... Nb8 {[%clk 0:01:19.3]} 23. dxe5 {[%clk 0:02:30.9]}
23... Nxc6 {[%clk 0:01:18.5]} 24. Qf3 {[%clk 0:02:24.5]} 24... Nd7 {[%clk
0:01:16.3]} 25. Nb3 {[%clk 0:02:19.6]} 25... Qb7 {[%clk 0:00:38.7]} 26. Rd6
{[%clk 0:02:07.5]} 26... Re6 {[%clk 0:00:32.8]} 27. Na5 {[%clk 0:02:06.4]} 27...
Nxa5 {[%clk 0:00:11.8]} 28. Qxb7 {[%clk 0:02:05.9]} 28... Nxb7 {[%clk
0:00:12.7]} 29. Rxc8+ {[%clk 0:02:05.9]} 29... Nf8 {[%clk 0:00:12.9]} 30. Rxe6
{[%clk 0:02:04.3]} 30... fxe6 {[%clk 0:00:13.5]} 31. Ba3 {[%clk 0:02:04.3]}
31... b4 {[%clk 0:00:13.8]} 32. Bxb4 {[%clk 0:02:04.5]} 1-0

[Event "Early-Titled-Tuesday-Blitz-January-30-2024"]
[Site "Chess.com"]
[Date "2024.01.30"]
[Round "7"]
[White "Casper"]
[Black "Matols"]
[Result "0-1"]
[WhiteElo "2525"]
[BlackElo "2400"]
[TimeControl "180+1"]
[EndTime "9:16:59 PST"]
[Termination "Matols won by resignation"]

1. Nf3 {[%clk 0:03:00.9]} 1... d5 {[%clk 0:02:59.2]} 2. b3 {[%clk 0:03:00.6]}
2... Nf6 {[%clk 0:02:58.3]} 3. Bb2 {[%clk 0:03:00.9]} 3... g6 {[%clk 0:02:58.6]}
4. e3 {[%clk 0:02:59.1]} 4... Bg7 {[%clk 0:02:58.1]} 5. c4 {[%clk 0:02:59.5]}
5... c6 {[%clk 0:02:56.9]} 6. Be2 {[%clk 0:02:58.2]} 6... O-O {[%clk 0:02:56.1]}
7. O-O {[%clk 0:02:58.6]} 7... Bg4 {[%clk 0:02:49.5]} 8. a4 {[%clk 0:02:53.1]}
8... a5 {[%clk 0:02:47.6]} 9. d3 {[%clk 0:02:50.9]} 9... Na6 {[%clk 0:02:45.1]}
10. Ne5 {[%clk 0:02:49.5]} 10... Bxe2 {[%clk 0:02:43.4]} 11. Qxe2 {[%clk
0:02:50.4]} 11... Nd7 {[%clk 0:02:37.7]} 12. f4 {[%clk 0:02:48.1]} 12... Nb4
{[%clk 0:02:34]} 13. Nd2 {[%clk 0:02:46.3]} 13... Nxe5 {[%clk 0:02:28.9]} 14.
fxe5 {[%clk 0:02:31.2]} 14... dxc4 {[%clk 0:02:28.3]} 15. Nxc4 {[%clk
0:02:03.5]} 15... Qxd3 {[%clk 0:02:24.5]} 16. Qxd3 {[%clk 0:02:03.3]} 16... Nxd3
{[%clk 0:02:25.4]} 17. Bc3 {[%clk 0:02:04]} 17... b5 {[%clk 0:02:16.9]} 18. axb5
{[%clk 0:01:59.3]} 18... cxb5 {[%clk 0:02:17.8]} 19. Nxa5 {[%clk 0:01:59.8]}
19... Nxe5 {[%clk 0:02:14.8]} 20. Bd4 {[%clk 0:01:15]} 20... Rfc8 {[%clk
0:02:07.5]} 21. Nb7 {[%clk 0:01:06.3]} 21... Rxa1 {[%clk 0:01:55.9]} 22. Rxa1
{[%clk 0:01:05.5]} 22... Nd3 {[%clk 0:01:55.1]} 23. Kf1 {[%clk 0:00:54.9]} 23...
Bxd4 {[%clk 0:01:35.5]} 24. exd4 {[%clk 0:00:55.8]} 24... Rc7 {[%clk 0:01:32.3]}
25. Ra8+ {[%clk 0:00:52.6]} 25... Kg7 {[%clk 0:01:31.6]} 26. Rb8 {[%clk
0:00:53.5]} 26... Rc2 {[%clk 0:01:23.9]} 27. Na5 {[%clk 0:00:46.8]} 27... Rf2+
{[%clk 0:01:22.4]} 28. Kg1 {[%clk 0:00:43.6]} 28... Ra2 {[%clk 0:01:21.5]} 0-1

[Event "Early-Titled-Tuesday-Blitz-January-30-2024"]
[Site "Chess.com"]
[Date "2024.01.30"]
[Round "7"]
[White "GatoRojo150"]
[Black "falzehope0"]
[Result "1-0"]
[WhiteElo "2589"]
[BlackElo "2390"]
[TimeControl "180+1"]
[EndTime "9:17:04 PST"]
[Termination "GatoRojo150 won on time"]

1. e4 {[%clk 0:03:00.9]} 1... d6 {[%clk 0:02:55.8]} 2. d4 {[%clk 0:03:00.3]}
2... Nf6 {[%clk 0:02:50.2]} 3. Nc3 {[%clk 0:03:00.3]} 3... Nbd7 {[%clk
0:02:45.9]} 4. Nf3 {[%clk 0:02:59.5]} 4... e5 {[%clk 0:02:44.5]} 5. g4 {[%clk
0:02:59.7]} 5... h6 {[%clk 0:02:36.9]} 6. Bc4 {[%clk 0:02:56.1]} 6... Be7 {[%clk
0:02:33.9]} 7. g5 {[%clk 0:02:56.1]} 7... hxg5 {[%clk 0:02:23]} 8. Nxg5 {[%clk
0:02:51.3]} 8... O-O {[%clk 0:02:02.5]} 9. Rg1 {[%clk 0:02:50.3]} 9... Nb6
{[%clk 0:01:55.8]} 10. dxe5 {[%clk 0:02:38.1]} 10... Nxc4 {[%clk 0:01:32.7]} 11.
exf6 {[%clk 0:02:37.3]} 11... Bxf6 {[%clk 0:01:32.1]} 12. Qh5 {[%clk 0:02:37.1]}
12... Bxg5 {[%clk 0:01:20.3]} 13. Bxg5 {[%clk 0:02:36.2]} 13... f6 {[%clk
0:01:17]} 14. Bh6 {[%clk 0:02:29.1]} 14... Rf7 {[%clk 0:01:06.7]} 15. Qd5 {[%clk
0:02:12.2]} 15... Ne5 {[%clk 0:00:48.4]} 16. Rxg7+ {[%clk 0:02:09.2]} 16... Kh8
{[%clk 0:00:45.4]} 17. Rxf7 {[%clk 0:02:01.2]} 17... c6 {[%clk 0:00:29.9]} 18.
Qb3 {[%clk 0:01:53.9]} 18... Nxf7 {[%clk 0:00:02.6]} 19. Qxf7 {[%clk 0:01:54.8]}
19... Qg8 {[%clk 0:00:02.2]} 20. Qxf6+ {[%clk 0:01:52.5]} 20... Kh7 {[%clk
0:00:02]} 21. O-O-O {[%clk 0:01:48.7]} 21... Bg4 {[%clk 0:00:01.2]} 22. Be3
{[%clk 0:01:41.5]} 1-0

[Event "Early-Titled-Tuesday-Blitz-January-30-2024"]
[Site "Chess.com"]
[Date "2024.01.30"]
[Round "7"]
[White "TigrVShlyape"]
[Black "Roman_Ovetchkin"]
[Result "1-0"]
[WhiteElo "2934"]
[BlackElo "2665"]
[TimeControl "180+1"]
[EndTime "9:17:17 PST"]
[Termination "TigrVShlyape won by resignation"]

1. e4 {[%clk 0:03:00.9]} 1... c6 {[%clk 0:02:59.4]} 2. Nf3 {[%clk 0:02:54.7]}
2... d5 {[%clk 0:02:59.1]} 3. d3 {[%clk 0:02:55.4]} 3... Qc7 {[%clk 0:02:56]} 4.
Nc3 {[%clk 0:02:54.7]} 4... dxe4 {[%clk 0:02:54.3]} 5. dxe4 {[%clk 0:02:55]}
5... b5 {[%clk 0:02:54.5]} 6. a4 {[%clk 0:02:52.3]} 6... b4 {[%clk 0:02:51.8]}
7. Ne2 {[%clk 0:02:52.2]} 7... e5 {[%clk 0:02:49.9]} 8. Ng3 {[%clk 0:02:52.1]}
8... Nf6 {[%clk 0:02:34.9]} 9. Bc4 {[%clk 0:02:50.3]} 9... Ba6 {[%clk
0:02:31.1]} 10. Qe2 {[%clk 0:02:46.6]} 10... Bxc4 {[%clk 0:02:28.3]} 11. Qxc4
{[%clk 0:02:46.3]} 11... Nbd7 {[%clk 0:02:27.3]} 12. O-O {[%clk 0:02:44.2]}
12... Nb6 {[%clk 0:02:13.1]} 13. Qa6 {[%clk 0:02:39.3]} 13... Bc5 {[%clk
0:01:47.3]} 14. Bg5 {[%clk 0:02:26]} 14... Nfd7 {[%clk 0:01:35]} 15. Nf5 {[%clk
0:02:01]} 15... O-O {[%clk 0:01:02.4]} 16. a5 {[%clk 0:02:00]} 16... Nc8 {[%clk
0:01:00.6]} 17. Rad1 {[%clk 0:01:55.6]} 17... f6 {[%clk 0:00:44.5]} 18. Qc4+
{[%clk 0:01:54.3]} 18... Rf7 {[%clk 0:00:44.4]} 19. Bxf6 {[%clk 0:01:20.8]}
19... Nd6 {[%clk 0:00:32.6]} 20. Nxd6 {[%clk 0:01:17.3]} 20... Bxd6 {[%clk
0:00:31.4]} 21. Ng5 {[%clk 0:01:16.5]} 1-0